bitfinex/quotes_BTCUSD_20250616
["timestamp","ask_amount","ask_price","bid_price","bid_amount"]
[1750057981356,0.64997957,106820.0,106810.0,0.003]
[1750057983915,0.64997957,106820.0,106810.0,0.0343]
[1750057985175,0.64997957,106820.0,106810.0,0.04366233]
[1750057985377,0.64997957,106820.0,106810.0,0.0343]
[1750057985593,0.21544822,106820.0,106810.0,0.0343]
[1750057985771,0.64997957,106820.0,106810.0,0.04366241]
[1750057985976,0.64997957,106820.0,106810.0,0.0343]
[1750057986178,0.64997957,106820.0,106810.0,0.04366241]
[1750057986383,0.64997957,106820.0,106810.0,0.0343]
[1750057986598,0.21544822,106820.0,106810.0,0.04366241]
[1750057986811,0.64997957,106820.0,106810.0,0.04366241]
[1750057987019,0.64997957,106820.0,106810.0,0.0343]
[1750057992248,1.11631092,106820.0,106810.0,0.003]
[1750057994295,1.13876887,106820.0,106810.0,0.003]
[1750057996049,1.13876887,106820.0,106810.0,0.002]
[1750057996262,1.13976887,106820.0,106810.0,0.002]
[1750057997893,1.30484887,106820.0,106810.0,0.002]
[1750058001534,1.13976887,106820.0,106810.0,0.002]
[1750058001785,1.30476887,106820.0,106810.0,0.002]
[1750058010013,1.27280887,106820.0,106810.0,0.002]
[1750058011700,0.81581957,106820.0,106810.0,0.002]
[1750058011902,0.65097957,106820.0,106810.0,0.002]
[1750058012108,0.838206,106820.0,106810.0,0.002]
[1750058012308,0.673406,106820.0,106810.0,0.002]
[1750058012517,0.65097957,106820.0,106810.0,0.002]
[1750058014418,1.08551092,106820.0,106810.0,0.002]
[1750058015803,1.1079415,106820.0,106810.0,0.002]
[1750058018308,1.2726615,106820.0,106810.0,0.002]
[1750058018704,1.1079415,106820.0,106810.0,0.002]
[1750058019010,1.2725815,106820.0,106810.0,0.002]
[1750058021079,1.1079415,106820.0,106810.0,0.002]
[1750058021215,1.2725815,106820.0,106810.0,0.002]
[1750058028037,1.2725815,106820.0,106790.0,0.0774]
[1750058028038,0.19662903,106800.0,106790.0,0.0774]
[1750058028249,1.06569173,106800.0,106790.0,0.0774]
[1750058029372,1.06569173,106800.0,106790.0,0.0774471]
[1750058029804,1.06569173,106800.0,106790.0,0.0010471]
[1750058030234,1.06569173,106800.0,106790.0,0.0040471]
[1750058030848,1.06569173,106800.0,106790.0,0.0010471]
[1750058031058,1.06569173,106800.0,106790.0,4.71e-05]
[1750058031263,1.06569173,106800.0,106790.0,0.0010471]
[1750058032108,1.06569173,106800.0,106790.0,0.0326471]
[1750058040328,0.88778885,106800.0,106790.0,0.21993055]
[1750058040553,1.08441805,106800.0,106790.0,0.04201127]
[1750058041021,1.08441805,106800.0,106790.0,0.0326471]
[1750058041237,1.07505502,106800.0,106790.0,0.0326471]
[1750058043755,1.0656919,106800.0,106790.0,0.0326471]
[1750058044682,1.0656919,106800.0,106790.0,0.0342471]
[1750058045735,0.63116055,106800.0,106790.0,0.0342471]
[1750058047177,0.0093625,106800.0,106790.0,0.69201752]
[1750058047382,0.19661062,106810.0,106800.0,0.22672911]
[1750058047383,0.01872422,106810.0,106800.0,0.22672911]
[1750058047512,0.45325504,106810.0,106800.0,0.24545508]
[1750058047725,0.47197952,106810.0,106800.0,0.35105978]
[1750058047933,0.46261719,106810.0,106800.0,0.36042254]
[1750058048364,0.47197952,106810.0,106800.0,0.34169693]
[1750058048790,0.47297952,106810.0,106800.0,0.34169693]
[1750058049020,0.47297952,106810.0,106800.0,0.35105978]
[1750058049021,0.03844817,106810.0,106800.0,0.35105978]
[1750058049196,0.01136171,106810.0,106800.0,0.36042254]
[1750058049395,0.03008557,106810.0,106800.0,0.36042202]
[1750058049620,0.0394479,106810.0,106800.0,0.39663184]
[1750058049834,0.03008557,106810.0,106800.0,0.41535728]
[1750058050242,0.03008557,106810.0,106800.0,0.4059946]
[1750058050243,0.03944781,106810.0,106800.0,0.4059946]
[1750058050448,0.03008557,106810.0,106800.0,0.41535728]
[1750058050621,0.03944772,106810.0,106800.0,0.4059946]
[1750058050829,0.04881005,106810.0,106800.0,0.39663184]
[1750058051042,0.04881005,106810.0,106800.0,0.38726899]
[1750058051248,0.04881005,106810.0,106800.0,0.5701146]
[1750058051617,0.03008557,106810.0,106800.0,0.57947728]
[1750058052330,0.03008557,106810.0,106800.0,0.5701146]
[1750058052333,0.03944781,106810.0,106800.0,0.5701146]
[1750058052588,0.002,106810.0,106800.0,0.57947728]
[1750058053230,0.001,106810.0,106800.0,0.57947728]
[1750058053728,0.03757812,106820.0,106810.0,0.24613457]
[1750058053945,0.05630023,106820.0,106810.0,0.46559861]
[1750058054599,0.58280604,106830.0,106820.0,0.23785349]
[1750058054600,0.40495294,106830.0,106820.0,0.23785349]
[1750058054823,0.60152683,106830.0,106820.0,0.23785366]
[1750058055250,0.60152683,106830.0,106820.0,0.2284923]
[1750058055713,0.39559219,106830.0,106820.0,0.23685375]
[1750058055931,0.02808041,106830.0,106820.0,0.48574483]
[1750058056362,0.0217201,106830.0,106820.0,0.58198659]
[1750058056580,0.0187201,106830.0,106820.0,0.58198659]
[1750058056834,0.00935996,106830.0,106820.0,0.58098659]
[1750058057070,0.02172001,106830.0,106820.0,0.58098659]
[1750058057322,0.58278773,106840.0,106820.0,0.58098659]
[1750058057323,0.00935943,106840.0,106830.0,0.00936031]
[1750058057566,0.41431088,106840.0,106830.0,0.20593438]
[1750058057802,0.41431035,106840.0,106830.0,0.29922098]
[1750058058043,0.42367014,106840.0,106830.0,0.32982098]
[1750058058274,0.41431035,106840.0,106830.0,0.32982098]
[1750058058505,0.42414115,106840.0,106830.0,0.3391812]
[1750058058726,0.01918962,106840.0,106830.0,0.42606274]
[1750058058964,0.03790849,106840.0,106830.0,0.42606274]
[1750058059195,0.42414072,106840.0,106830.0,0.42606274]
[1750058059450,0.43350051,106840.0,106830.0,0.42606274]
[1750058059672,0.43350051,106840.0,106830.0,0.41670243]
[1750058060418,0.42414072,106840.0,106830.0,0.43542296]
[1750058060657,0.43350051,106840.0,106830.0,0.42606274]
[1750058061111,0.42414072,106840.0,106830.0,0.43542296]
[1750058061773,0.43350051,106840.0,106830.0,0.42606274]
[1750058062221,0.42414072,106840.0,106830.0,0.43542296]
[1750058062444,0.41478111,106840.0,106830.0,0.43542209]
[1750058062689,0.41478111,106840.0,106830.0,0.42606204]
[1750058062922,0.41478102,106840.0,106830.0,0.43542209]
[1750058063128,0.40542159,106840.0,106830.0,0.43542209]
[1750058063353,0.41478102,106840.0,106830.0,0.43542209]
[1750058063580,0.0014711,106840.0,106830.0,0.43542209]
[1750058064700,0.02018936,106840.0,106830.0,0.43542209]
[1750058065997,0.02018936,106840.0,106830.0,0.64534209]
[1750058065998,0.02954879,106840.0,106830.0,0.64534209]
[1750058066215,0.41578102,106840.0,106830.0,0.64534209]
[1750058066720,0.41578094,106840.0,106830.0,0.64534209]
[1750058066722,0.40642159,106840.0,106830.0,0.64534209]
[1750058066970,0.02018927,106840.0,106830.0,0.64534209]
[1750058067236,0.41578085,106840.0,106830.0,0.64534209]
[1750058068702,0.42514028,106840.0,106830.0,0.64534209]
[1750058069168,0.4064215,106840.0,106830.0,0.64534209]
[1750058069611,0.41578076,106840.0,106830.0,0.64534209]
[1750058070064,0.42514019,106840.0,106830.0,0.64534209]
[1750058070500,0.42514011,106840.0,106830.0,0.64534209]
[1750058070947,0.43449963,106840.0,106830.0,0.64534209]
[1750058071894,0.42514011,106840.0,106830.0,0.64534209]
[1750058076906,0.46383481,106840.0,106830.0,0.64534209]
[1750058077343,0.43575738,106840.0,106830.0,0.64534209]
[1750058077793,0.44511638,106840.0,106830.0,0.64534209]
[1750058078431,0.44511638,106840.0,106830.0,0.64634209]
[1750058078643,0.45447555,106840.0,106830.0,0.64634209]
[1750058079210,0.44511638,106840.0,106830.0,0.64634209]
[1750058079408,0.44511638,106840.0,106830.0,0.64834209]
[1750058079638,0.0108301,106840.0,106830.0,0.64834209]
[1750058079870,0.44511638,106840.0,106830.0,0.64834209]
[1750058080559,0.45447546,106840.0,106830.0,0.64834209]
[1750058080987,0.46383472,106840.0,106830.0,0.64834209]
[1750058081218,0.45447546,106840.0,106830.0,0.64834209]
[1750058081940,0.0108301,106840.0,106830.0,0.64834209]
[1750058082172,0.45447546,106840.0,106830.0,0.64834209]
[1750058082383,0.46383463,106840.0,106830.0,0.64834209]
[1750058086738,0.02954835,106840.0,106830.0,0.64834209]
[1750058086966,0.46383463,106840.0,106830.0,0.64834209]
[1750058087607,0.45447546,106840.0,106830.0,0.64834209]
[1750058088295,0.0108301,106840.0,106830.0,0.64834209]
[1750058088512,0.45447564,106840.0,106830.0,0.64834209]
[1750058088719,0.45447555,106840.0,106830.0,0.64834209]
[1750058090381,0.45447546,106840.0,106830.0,0.64834209]
[1750058091466,0.0014711,106840.0,106830.0,1.08262837]
[1750058093835,0.0014711,106840.0,106830.0,1.09188887]
[1750058095050,0.0014711,106840.0,106830.0,1.08262837]
[1750058096012,0.0014711,106840.0,106830.0,1.08178837]
[1750058099037,0.0014711,106840.0,106830.0,0.64750209]
[1750058100301,0.0014711,106840.0,106830.0,0.43842209]
[1750058100567,0.0014711,106840.0,106830.0,0.64742209]
[1750058104656,0.0014711,106840.0,106830.0,0.43842209]
[1750058104875,0.0014711,106840.0,106830.0,0.64734209]
[1750058107422,0.0014711,106840.0,106830.0,1.03328871]
[1750058107656,0.0014711,106840.0,106830.0,0.64734209]
[1750058107883,0.0014711,106840.0,106830.0,1.03328871]
[1750058108342,0.0014711,106840.0,106830.0,1.04782956]
[1750058108564,0.0014711,106840.0,106830.0,0.66188294]
[1750058108784,0.0014711,106840.0,106830.0,1.04782956]
[1750058109006,0.0014711,106840.0,106830.0,1.04682956]
[1750058109227,0.0014711,106840.0,106830.0,1.04482956]
[1750058109468,0.0014711,106840.0,106830.0,0.66488294]
[1750058109709,0.0014711,106840.0,106830.0,1.05082956]
[1750058112470,0.0004711,106840.0,106830.0,1.05082956]
[1750058114632,0.0004711,106840.0,106830.0,0.66488294]
[1750058114852,0.0004711,106840.0,106830.0,1.05082956]
[1750058116013,0.0004711,106840.0,106830.0,0.66488294]
[1750058116219,0.0004711,106840.0,106830.0,1.05082956]
[1750058116533,0.0004711,106840.0,106830.0,0.66488294]
[1750058116745,0.0004711,106840.0,106830.0,1.05082956]
[1750058117176,0.0004711,106840.0,106830.0,0.66488294]
[1750058117566,0.0004711,106840.0,106830.0,1.05082956]
[1750058119098,0.0004711,106840.0,106830.0,1.09898312]
[1750058123563,0.0004711,106840.0,106830.0,0.66488294]
[1750058123790,0.0004711,106840.0,106830.0,1.09898312]
[1750058124383,0.0004711,106840.0,106830.0,1.5330833]
[1750058124613,0.0004711,106840.0,106830.0,1.09898312]
[1750058127018,0.0004711,106840.0,106830.0,1.5330833]
[1750058128307,0.0004711,106840.0,106830.0,1.5310833]
[1750058128583,0.0004711,106840.0,106830.0,1.3181633]
[1750058128832,0.0004711,106840.0,106830.0,1.10130312]
[1750058129058,0.0004711,106840.0,106830.0,1.40010312]
[1750058129731,0.0004711,106840.0,106830.0,1.8342033]
[1750058130300,0.0004711,106840.0,106830.0,2.0842033]
[1750058131523,0.00010003,106840.0,106830.0,2.1342033]
[1750058131806,0.00010003,106840.0,106830.0,2.71189217]
[1750058132046,0.00073029,106860.0,106850.0,0.94489499]
[1750058132299,0.00073029,106860.0,106850.0,1.56986772]
[1750058133025,0.00073029,106860.0,106850.0,1.61538772]
[1750058133483,0.00073029,106860.0,106850.0,1.61838772]
[1750058133967,0.0007775,106860.0,106850.0,1.61838772]
[1750058134920,0.0007775,106860.0,106850.0,1.57002036]
[1750058135158,0.0007775,106860.0,106850.0,1.57402036]
[1750058135865,0.0007775,106860.0,106850.0,1.18828754]
[1750058136340,0.0007775,106860.0,106850.0,0.88948754]
[1750058140688,0.0007775,106860.0,106850.0,0.68128754]
[1750058140926,0.0007775,106860.0,106850.0,0.88936754]
[1750058143637,0.0007775,106860.0,106850.0,0.85828754]
[1750058144676,0.0007775,106860.0,106850.0,0.88988754]
[1750058144878,0.0007775,106860.0,106850.0,0.68188754]
[1750058145489,0.0007775,106860.0,106850.0,0.88984754]
[1750058147400,0.0007775,106860.0,106850.0,0.88980754]
[1750058156966,0.0007775,106860.0,106850.0,1.3237678]
[1750058158544,0.0007775,106860.0,106850.0,1.5935278]
[1750058160683,0.0007775,106860.0,106850.0,1.15956754]
[1750058160894,0.0007775,106860.0,106850.0,1.5935278]
[1750058170485,0.0007775,106860.0,106850.0,1.15956754]
[1750058170702,0.0007775,106860.0,106850.0,1.5935278]
[1750058171135,0.0007775,106860.0,106850.0,1.15956754]
[1750058171358,0.0007775,106860.0,106850.0,1.4311278]
[1750058171585,0.0007775,106860.0,106850.0,1.5932078]
[1750058172742,0.0007775,106860.0,106850.0,1.15896754]
[1750058172936,0.0007775,106860.0,106850.0,1.5929278]
[1750058173227,0.0007775,106860.0,106850.0,1.15896754]
[1750058173672,0.0007775,106860.0,106850.0,1.5929278]
[1750058175365,0.0007775,106860.0,106850.0,1.15896754]
[1750058175617,0.0007775,106860.0,106850.0,1.5929278]
[1750058176104,0.0007775,106860.0,106850.0,1.15896754]
[1750058176767,0.0007775,106860.0,106850.0,1.5929278]
[1750058179471,0.0007775,106860.0,106850.0,1.15896754]
[1750058179682,0.0007775,106860.0,106850.0,1.5929278]
[1750058179894,0.0007775,106860.0,106850.0,1.15896754]
[1750058180112,0.0007775,106860.0,106850.0,1.5929278]
[1750058183165,0.0007775,106860.0,106850.0,1.15896754]
[1750058183580,0.0007775,106860.0,106850.0,1.5929278]
[1750058190072,0.0007775,106860.0,106850.0,1.15896754]
[1750058190501,0.0007775,106860.0,106850.0,1.5929278]
[1750058190715,0.0007775,106860.0,106850.0,1.68635661]
[1750058190941,0.0007775,106860.0,106850.0,1.5929278]
[1750058191715,0.0007775,106860.0,106850.0,1.5889278]
[1750058191927,0.0007775,106860.0,106850.0,1.5909278]
[1750058192116,0.0007775,106860.0,106850.0,1.5939278]
[1750058193318,0.0007775,106860.0,106850.0,1.15996754]
[1750058193538,0.0007775,106860.0,106850.0,1.5939278]
[1750058205493,0.0007775,106860.0,106850.0,0.95264754]
[1750058205701,0.0007775,106860.0,106850.0,1.5616478]
[1750058205908,0.0007775,106860.0,106850.0,1.12768754]
[1750058208248,0.0007775,106860.0,106850.0,0.85792754]
[1750058208460,0.0007775,106860.0,106850.0,0.85784754]
[1750058209927,0.30654232,106870.0,106860.0,0.21523382]
[1750058210147,0.30654232,106870.0,106860.0,0.54981786]
[1750058211371,0.30654232,106870.0,106860.0,0.55381786]
[1750058212479,0.30654232,106870.0,106860.0,0.55481786]
[1750058212995,0.32264232,106870.0,106860.0,0.55481786]
[1750058215341,0.32264232,106870.0,106860.0,0.59953786]
[1750058216099,0.30654232,106870.0,106860.0,0.59953786]
[1750058217275,0.0157,106870.0,106860.0,0.59953786]
[1750058217535,0.44966026,106870.0,106860.0,0.59953786]
[1750058218908,0.44966026,106870.0,106860.0,0.39321786]
[1750058219188,0.93714784,106870.0,106860.0,0.14596176]
[1750058219440,1.11493463,106870.0,106860.0,0.30744176]
[1750058219711,0.92779138,106870.0,106860.0,0.30744176]
[1750058220000,0.92779138,106870.0,106860.0,0.36737228]
[1750058220253,0.91843422,106870.0,106860.0,0.57224868]
[1750058220514,0.9184337,106870.0,106860.0,0.57224868]
[1750058220766,0.9184337,106870.0,106860.0,0.58160619]
[1750058221013,0.48447344,106870.0,106860.0,0.57760619]
[1750058221278,0.48447344,106870.0,106860.0,0.58896361]
[1750058221550,0.47511663,106870.0,106860.0,0.58896361]
[1750058222242,0.48447309,106870.0,106860.0,0.58896361]
[1750058222512,0.49382972,106870.0,106860.0,0.58896361]
[1750058223427,0.48447309,106870.0,106860.0,0.58896361]
[1750058223851,0.49382972,106870.0,106860.0,0.58896361]
[1750058224061,0.48447309,106870.0,106860.0,0.58896361]
[1750058224900,0.49382972,106870.0,106860.0,0.58896361]
[1750058225107,0.49382964,106870.0,106860.0,0.58896361]
[1750058226118,0.50318636,106870.0,106860.0,0.57960619]
[1750058226337,0.51254326,106870.0,106860.0,0.57024868]
[1750058226563,0.93714662,106870.0,106860.0,0.51967576]
[1750058226783,1.12428987,106870.0,106860.0,0.002]
[1750058226999,1.12428987,106870.0,106860.0,0.20816]
[1750058227000,1.12429092,106870.0,106860.0,0.20816]
[1750058227225,0.93714767,106870.0,106860.0,0.20816]
[1750058227447,1.12429153,106870.0,106860.0,0.27687809]
[1750058227678,0.69033127,106870.0,106860.0,0.26752023]
[1750058227893,0.68097455,106870.0,106860.0,0.26752031]
[1750058228544,0.68097455,106870.0,106860.0,0.25816228]
[1750058228761,0.67161774,106870.0,106860.0,0.25816228]
[1750058228989,1.105578,106870.0,106860.0,0.25816228]
[1750058229205,0.67161774,106870.0,106860.0,0.25816228]
[1750058229641,1.105578,106870.0,106860.0,0.25816228]
[1750058229862,1.09622093,106870.0,106860.0,0.25816228]
[1750058230100,1.09622093,106870.0,106860.0,0.20816]
[1750058231684,1.09622093,106870.0,106860.0,0.04676]
[1750058231901,0.22830041,106870.0,106860.0,0.20812]
[1750058232121,1.09622093,106870.0,106860.0,0.20812]
[1750058232371,1.09622093,106870.0,106860.0,0.226288]
[1750058232583,1.09622093,106870.0,106860.0,0.04676]
[1750058232795,1.09622093,106870.0,106860.0,0.20812]
[1750058233534,0.22830041,106870.0,106860.0,0.20812]
[1750058233779,0.66226067,106870.0,106860.0,0.20812]
[1750058235735,0.66226067,106870.0,106860.0,0.21747803]
[1750058235949,0.66226067,106870.0,106860.0,0.20812]
[1750058236594,0.22830041,106870.0,106860.0,0.21747803]
[1750058236811,0.66226067,106870.0,106860.0,0.20812]
[1750058237251,0.22830041,106870.0,106860.0,0.21747803]
[1750058237468,0.66226067,106870.0,106860.0,0.21747803]
[1750058237693,0.66226067,106870.0,106860.0,0.20812]
[1750058237694,0.22830041,106870.0,106860.0,0.20812]
[1750058237912,1.09622093,106870.0,106860.0,0.20812]
[1750058238557,1.09622093,106870.0,106860.0,0.24952155]
[1750058239273,1.09622093,106870.0,106860.0,0.04676]
[1750058239922,1.09622093,106870.0,106860.0,0.002]
[1750058241020,0.2281188,106860.0,106850.0,0.21539891]
[1750058241253,1.09603932,106860.0,106850.0,0.22475773]
[1750058241682,1.09603932,106860.0,106850.0,0.20604]
[1750058241921,1.09603932,106860.0,106850.0,0.24981985]
[1750058242415,1.09603932,106860.0,106850.0,0.25181985]
[1750058242856,1.09603932,106860.0,106850.0,0.04652]
[1750058243077,1.09603932,106860.0,106850.0,0.002]
[1750058244621,0.22823701,106850.0,106840.0,0.21511979]
[1750058244841,0.66219727,106850.0,106840.0,0.215167]
[1750058245542,0.66219727,106850.0,106840.0,0.2245267]
[1750058245776,0.67155592,106850.0,106840.0,0.28509516]
[1750058245991,0.67155592,106850.0,106840.0,0.28709516]
[1750058246436,0.04377585,106850.0,106840.0,0.47429096]
[1750058246650,0.47773611,106850.0,106840.0,0.48365048]
[1750058247302,0.47773611,106850.0,106840.0,0.48365057]
[1750058247532,0.66491439,106850.0,106840.0,0.48365057]
[1750058247951,0.66491439,106850.0,106840.0,0.49301009]
[1750058248153,0.66491439,106850.0,106840.0,0.48365057]
[1750058249224,0.66491439,106850.0,106840.0,0.49301009]
[1750058249857,0.23095413,106850.0,106840.0,0.48365057]
[1750058250069,0.66491439,106850.0,106840.0,0.48365057]
[1750058250482,0.66491439,106850.0,106840.0,0.49301009]
[1750058250697,0.6742733,106850.0,106840.0,0.48365057]
[1750058250899,0.6742733,106850.0,106840.0,0.49301009]
[1750058251117,0.6742733,106850.0,106840.0,0.48365057]
[1750058251361,0.6742733,106850.0,106840.0,0.49301009]
[1750058251604,0.66491483,106850.0,106840.0,0.47429096]
[1750058252047,0.66491483,106850.0,106840.0,0.48365057]
[1750058252703,0.66491483,106850.0,106840.0,0.49301009]
[1750058253053,0.47773655,106850.0,106840.0,0.49301009]
[1750058253265,0.47773655,106850.0,106840.0,0.50236952]
[1750058253671,0.47773655,106850.0,106840.0,0.49301009]
[1750058254496,0.47773655,106850.0,106840.0,0.48365057]
[1750058254721,0.66491483,106850.0,106840.0,0.48365057]
[1750058254923,0.66491483,106850.0,106840.0,0.26837567]
[1750058255394,0.65555618,106850.0,106840.0,0.26837567]
[1750058255842,0.67205618,106850.0,106840.0,0.00204721]
[1750058256068,1.10601644,106850.0,106840.0,0.00204721]
[1750058256967,1.10601644,106850.0,106840.0,4.721e-05]
[1750058259603,1.10701644,106850.0,106840.0,4.721e-05]
[1750058276764,1.10701644,106850.0,106840.0,4.721e-05]
[1750058277424,1.10801644,106850.0,106840.0,4.721e-05]
[1750058277628,1.26889644,106850.0,106840.0,4.721e-05]
[1750058278347,0.40097592,106850.0,106840.0,4.721e-05]
[1750058278562,1.26889644,106850.0,106840.0,4.721e-05]
[1750058278772,1.10801644,106850.0,106840.0,4.721e-05]
[1750058279193,1.13046669,106850.0,106840.0,4.721e-05]
[1750058281575,1.46817382,106850.0,106840.0,4.721e-05]
[1750058281802,0.20593403,106830.0,106820.0,0.13541857]
[1750058282030,1.07385455,106830.0,106820.0,0.13588967]
[1750058283140,1.07385455,106830.0,106820.0,0.13688967]
[1750058284879,1.07485455,106830.0,106820.0,0.0616911]
[1750058285075,1.08405644,106830.0,106820.0,0.0616911]
[1750058285503,1.08405644,106830.0,106820.0,0.0771911]
[1750058285719,1.11238388,106830.0,106820.0,0.0771911]
[1750058286439,1.11238388,106830.0,106820.0,0.0616911]
[1750058286886,1.11238388,106830.0,106820.0,0.0173711]
[1750058292334,1.11238388,106830.0,106820.0,0.0014711]
[1750058292549,1.16534566,106830.0,106820.0,0.0014711]
[1750058294189,1.76002592,106830.0,106820.0,0.0014711]
[1750058294622,1.32606566,106830.0,106820.0,0.0014711]
[1750058294840,1.32606566,106830.0,106820.0,0.0004711]
[1750058295072,1.32806566,106830.0,106820.0,0.0004711]
[1750058297989,1.42430742,106830.0,106820.0,0.0004711]
[1750058298206,1.85826768,106830.0,106820.0,0.0004711]
[1750058298986,1.42430742,106830.0,106820.0,0.0004711]
[1750058299976,0.21269221,106820.0,106810.0,0.002]
[1750058300204,0.20599188,106800.0,106790.0,0.30018]
[1750058300433,1.0739124,106800.0,106790.0,0.3002271]
[1750058301589,1.0749124,106800.0,106790.0,0.3002271]
[1750058302280,0.20699188,106800.0,106790.0,0.3002271]
[1750058302540,0.01972597,106800.0,106790.0,0.36467756]
[1750058302759,1.06554955,106800.0,106790.0,0.36467756]
[1750058302973,0.57463924,106800.0,106790.0,0.3002271]
[1750058304345,0.18826591,106800.0,106790.0,0.3002271]
[1750058304570,0.57463924,106800.0,106790.0,0.3002271]
[1750058307373,0.18826591,106800.0,106790.0,0.3002271]
[1750058307598,0.57463924,106800.0,106790.0,0.04792845]
[1750058308048,0.57463924,106800.0,106790.0,0.04792846]
[1750058308719,0.57463924,106800.0,106790.0,0.04792847]
[1750058309015,0.57463924,106800.0,106790.0,0.04792846]
[1750058309243,0.57463924,106800.0,106790.0,0.04792845]
[1750058309705,0.18826591,106800.0,106790.0,0.03957594]
[1750058309926,0.57463924,106800.0,106790.0,0.05715732]
[1750058310152,0.57463924,106800.0,106790.0,0.03957594]
[1750058310419,0.57463924,106800.0,106790.0,0.0303471]
[1750058310632,0.57463924,106800.0,106790.0,0.04792845]
[1750058310849,0.57463924,106800.0,106790.0,0.04792846]
[1750058311067,0.57463924,106800.0,106790.0,0.0303471]
[1750058311283,0.18826591,106800.0,106790.0,0.0303471]
[1750058311497,0.18826591,106800.0,106790.0,0.04792848]
[1750058311723,0.57463924,106800.0,106790.0,0.04792847]
[1750058312362,0.57463924,106800.0,106790.0,0.04792846]
[1750058312590,0.57463924,106800.0,106790.0,0.04792849]
[1750058312805,0.57463924,106800.0,106790.0,0.0303471]
[1750058313024,0.57463924,106800.0,106790.0,0.04792842]
[1750058313247,0.57463924,106800.0,106790.0,0.0303471]
[1750058313689,0.73523924,106800.0,106790.0,0.03875431]
[1750058313931,0.73523924,106800.0,106790.0,0.05633558]
[1750058314155,0.73523924,106800.0,106790.0,0.03875431]
[1750058314417,0.73523924,106800.0,106790.0,0.05633556]
[1750058314656,0.73523924,106800.0,106790.0,0.03875431]
[1750058315133,0.73523924,106800.0,106790.0,0.05633558]
[1750058315322,0.73523924,106800.0,106790.0,0.03875431]
[1750058315581,0.73523924,106800.0,106790.0,0.05633558]
[1750058316242,0.34886591,106800.0,106790.0,0.05633558]
[1750058316712,0.73523924,106800.0,106790.0,0.05633557]
[1750058317364,0.73523924,106800.0,106790.0,0.05633559]
[1750058317583,0.73523924,106800.0,106790.0,0.03875431]
[1750058317810,0.73523924,106800.0,106790.0,0.04792838]
[1750058318246,0.73523924,106800.0,106790.0,0.0303471]
[1750058318462,0.73523924,106800.0,106790.0,0.04792838]
[1750058318911,0.34886591,106800.0,106790.0,0.04792838]
[1750058319125,1.12161257,106800.0,106790.0,0.04792838]
[1750058319343,0.34886591,106800.0,106790.0,0.05365774]
[1750058319567,1.12161257,106800.0,106790.0,0.05365774]
[1750058319788,1.12161257,106800.0,106790.0,0.03607644]
[1750058319972,0.73523924,106800.0,106790.0,0.03607644]
[1750058320196,0.73523924,106800.0,106790.0,0.05365771]
[1750058320393,0.73523924,106800.0,106790.0,0.03607644]
[1750058321762,0.34886591,106800.0,106790.0,0.03607644]
[1750058321991,0.34886591,106800.0,106790.0,0.0536576]
[1750058321992,0.73523924,106800.0,106790.0,0.0536576]
[1750058322214,0.73523924,106800.0,106790.0,0.03607644]
[1750058322432,0.73523924,106800.0,106790.0,0.05365752]
[1750058322651,0.73523924,106800.0,106790.0,0.05365121]
[1750058322865,0.73523924,106800.0,106790.0,0.03607644]
[1750058323079,1.05766761,106800.0,106790.0,0.05365121]
[1750058323299,1.05766761,106800.0,106790.0,0.0536514]
[1750058323735,1.05766761,106800.0,106790.0,0.05365139]
[1750058323950,0.18826591,106800.0,106790.0,0.0303471]
[1750058324194,1.05766761,106800.0,106790.0,0.04792203]
[1750058324408,1.05766761,106800.0,106790.0,0.0303471]
[1750058324867,1.05766761,106800.0,106790.0,0.0479221]
[1750058325088,1.05766761,106800.0,106790.0,0.0303471]
[1750058325319,1.05766761,106800.0,106790.0,0.04792207]
[1750058325536,1.05766761,106800.0,106790.0,0.0303471]
[1750058325782,1.05766761,106800.0,106790.0,0.04792206]
[1750058326006,1.05766761,106800.0,106790.0,0.04792208]
[1750058326446,0.18826591,106800.0,106790.0,0.04792209]
[1750058326661,1.05766761,106800.0,106790.0,0.05271428]
[1750058326901,1.05766761,106800.0,106790.0,0.03513931]
[1750058327324,1.05766761,106800.0,106790.0,0.05271427]
[1750058327545,0.18826591,106800.0,106790.0,0.03513931]
[1750058327770,1.05766761,106800.0,106790.0,0.03513931]
[1750058328016,1.05766761,106800.0,106790.0,0.05271427]
[1750058328239,1.05766761,106800.0,106790.0,0.03513931]
[1750058328452,1.05766761,106800.0,106790.0,0.0303471]
[1750058328659,1.05766761,106800.0,106790.0,0.0479221]
[1750058328875,1.05766761,106800.0,106790.0,0.04792211]
[1750058329090,1.05766761,106800.0,106790.0,0.04792207]
[1750058329329,1.05766761,106800.0,106790.0,0.0303471]
[1750058329787,1.05766761,106800.0,106790.0,0.04792209]
[1750058330218,1.05766761,106800.0,106790.0,0.0303471]
[1750058330433,1.05766761,106800.0,106790.0,0.0479221]
[1750058330650,1.05766761,106800.0,106790.0,0.04792211]
[1750058331306,1.05766761,106800.0,106790.0,0.04792212]
[1750058331739,1.05766761,106800.0,106790.0,0.0479221]
[1750058332592,1.05766761,106800.0,106790.0,0.04792836]
[1750058332792,1.05766761,106800.0,106790.0,0.0303471]
[1750058333220,0.18826591,106800.0,106790.0,0.04792836]
[1750058333461,1.05766761,106800.0,106790.0,0.0303471]
[1750058339161,1.05766761,106800.0,106790.0,0.03525481]
[1750058339387,1.05766761,106800.0,106790.0,0.0303471]
[1750058339617,1.05766761,106800.0,106790.0,0.0150471]
[1750058341273,0.18826591,106800.0,106790.0,0.0150471]
[1750058341706,1.05766761,106800.0,106790.0,0.0150471]
[1750058346651,0.18826591,106800.0,106790.0,0.0150471]
[1750058346881,1.05766761,106800.0,106790.0,0.0150471]
[1750058350612,0.18826591,106800.0,106790.0,0.0150471]
[1750058350828,1.05766761,106800.0,106790.0,0.0150471]
[1750058351529,1.05766761,106800.0,106790.0,0.0302471]
[1750058358723,1.21806761,106800.0,106790.0,0.0302471]
[1750058359364,0.34866591,106800.0,106790.0,0.0302471]
[1750058359574,1.21806761,106800.0,106790.0,0.0302471]
[1750058360057,1.05766761,106800.0,106790.0,0.0302471]
[1750058360289,1.05766761,106800.0,106790.0,0.05387482]
[1750058360715,0.001,106800.0,106790.0,0.80019233]
[1750058360952,0.001,106800.0,106790.0,0.96055233]
[1750058361179,0.001,106800.0,106790.0,1.03555881]
[1750058361405,5.925e-05,106800.0,106790.0,1.03555881]
[1750058361641,5.925e-05,106800.0,106790.0,0.96055233]
[1750058362095,5.925e-05,106800.0,106790.0,1.05313477]
[1750058362317,5.925e-05,106800.0,106790.0,1.0531347]
[1750058362589,5.925e-05,106800.0,106790.0,0.97812831]
[1750058363027,5.925e-05,106800.0,106790.0,0.54342749]
[1750058363237,5.925e-05,106800.0,106790.0,0.96255233]
[1750058363453,5.925e-05,106800.0,106790.0,0.54542748]
[1750058363666,0.47214814,106810.0,106800.0,0.24705473]
[1750058363879,0.46278608,106810.0,106800.0,0.48020445]
[1750058364107,0.45342419,106810.0,106800.0,0.48020445]
[1750058364315,0.46278608,106810.0,106800.0,0.46262828]
[1750058364541,0.47214806,106810.0,106800.0,0.48020471]
[1750058364766,0.4815103,106810.0,106800.0,0.48956756]